bitfinex/quotes_ETHUSD_20250720
["timestamp","ask_amount","ask_price","bid_price","bid_amount"]
[1752980887477,0.002,3622.1,3622.0,2.76090558]
[1752980887679,0.002,3622.1,3622.0,4.08734242]
[1752980889882,0.002,3622.1,3622.0,3.65634242]
[1752980890229,0.002,3622.1,3622.0,1e-08]
[1752980890417,0.4561,3622.1,3622.0,1e-08]
[1752980891213,0.002,3622.1,3622.0,1e-08]
[1752980895891,0.4561,3622.1,3622.0,1e-08]
[1752980896813,0.002,3622.1,3622.0,1e-08]
[1752980897011,1.2779,3622.1,3622.0,1e-08]
[1752980897405,5.4899,3622.1,3622.0,1e-08]
[1752980899025,4.214,3622.1,3622.0,1e-08]
[1752980899638,0.002,3622.1,3622.0,1e-08]
[1752980899842,4.214,3622.1,3622.0,1e-08]
[1752980901412,4.214,3622.1,3622.0,2.76090558]
[1752980901622,4.214,3622.1,3622.0,3.35460558]
[1752980903552,4.214,3622.1,3622.0,0.59370001]
[1752980903727,4.164,3622.1,3622.0,3.35460558]
[1752980904467,4.164,3622.1,3622.0,0.13760001]
[1752980906570,4.214,3622.2,3622.0,0.13760001]
[1752980906716,4.214,3622.2,3622.1,3.19346284]
[1752980908537,0.7977,3622.1,3622.0,1e-08]
[1752980908743,3.55852935,3622.1,3622.0,1e-08]
[1752980909058,4.03252935,3622.1,3622.0,1e-08]
[1752980909277,4.17012935,3622.1,3622.0,1e-08]
[1752980909849,4.69763804,3622.1,3622.0,1e-08]
[1752980915963,8.90863804,3622.1,3622.0,1e-08]
[1752980918636,8.66093804,3622.1,3622.0,1e-08]
[1752980918840,9.46063804,3622.1,3622.0,1e-08]
[1752980919250,9.60449739,3622.1,3622.0,1e-08]
[1752980923791,9.60649739,3622.1,3622.0,1e-08]
[1752980926119,12.60649739,3622.1,3622.0,1e-08]
[1752980929698,4.122763,3621.4,3621.2,0.001]
[1752980929902,8.332763,3621.4,3621.2,0.001]
[1752980930271,8.775363,3621.4,3621.2,0.001]
[1752980931703,3.44903926,3621.3,3621.1,0.041]
[1752980931901,3.44903926,3621.3,3620.6,0.001]
[1752980931902,0.55,3620.9,3620.6,0.001]
[1752980932110,4.12329687,3620.7,3620.6,0.001]
[1752980932742,4.56589687,3620.7,3620.6,0.001]
[1752980936196,1.56589687,3620.7,3620.6,0.001]
[1752980936396,4.32779374,3620.7,3620.6,0.001]
[1752980936988,2.76197315,3620.6,3620.5,0.001]
[1752980937190,3.57352573,3620.4,3620.3,0.001]
[1752980937429,7.78452573,3620.4,3620.3,0.001]
[1752980937632,8.22712573,3620.4,3620.3,0.001]
[1752980938310,8.77712573,3620.4,3620.3,0.001]
[1752980938633,10.34818136,3620.4,3620.3,0.001]
[1752980939204,6.31220202,3620.3,3620.1,1e-08]
[1752980939439,11.28707832,3620.2,3620.1,1e-08]
[1752980939591,3.31258356,3619.8,3619.6,0.001]
[1752980939796,8.28738356,3619.8,3619.6,0.001]
[1752980939996,8.72998356,3619.8,3619.6,0.001]
[1752980940624,3.31258356,3619.8,3619.6,0.001]
[1752980940828,7.52358356,3619.8,3619.6,0.001]
[1752980942042,7.52358356,3619.8,3619.7,0.4616]
[1752980942043,4.211,3619.8,3619.7,0.4616]
[1752980942331,14.528,3620.2,3619.7,0.90359628]
[1752980942533,14.528,3620.2,3620.1,3.19346284]
[1752980942700,18.739,3620.2,3620.1,3.65406284]
[1752980943097,0.6876,3620.1,3619.7,0.001]
[1752980943321,2.76258356,3619.8,3619.7,0.001]
[1752980943526,7.52358356,3619.8,3619.7,0.001]
[1752980944335,14.67192978,3620.2,3619.8,0.7792]
[1752980944533,4.761,3620.1,3619.8,0.7792]
[1752980944835,0.1376,3619.8,3619.7,0.001]
[1752980945037,4.3486,3619.8,3619.7,0.001]
[1752980945233,4.3486,3619.8,3619.7,0.4616]
[1752980945733,0.1376,3619.8,3619.7,0.4616]
[1752980946104,4.3486,3619.8,3619.7,0.4616]
[1752980947604,0.1376,3619.8,3619.7,0.90522628]
[1752980947803,0.1376,3619.8,3619.7,3.66788616]
[1752980948012,0.55,3620.7,3620.0,2.76237025]
[1752980948013,2.76195432,3620.7,3620.0,2.76237025]
[1752980948204,0.1376,3620.3,3620.1,3.65406284]
[1752980948405,4.211,3620.2,3620.1,6.95163897]
[1752980948628,4.211,3620.2,3620.1,7.41223897]
[1752980948948,4.211,3620.2,3620.1,4.64988434]
[1752980951434,4.211,3620.2,3620.1,3.65406284]
[1752980951636,4.211,3620.2,3620.1,3.19346284]
[1752980952544,4.211,3620.2,3620.1,3.65406284]
[1752980953340,4.211,3620.2,3620.1,6.41641747]
[1752980954207,4.211,3620.2,3620.1,3.65406284]
[1752980954642,4.211,3620.2,3620.1,7.41224202]
[1752980955445,0.1376,3620.3,3620.2,0.8261]
[1752980955621,0.1376,3620.3,3620.2,1.2867]
[1752980956139,0.1376,3620.3,3620.2,0.8261]
[1752980956332,0.1376,3620.3,3620.2,1.2867]
[1752980958041,0.1376,3620.3,3620.1,4.18928739]
[1752980958431,0.1376,3620.3,3620.1,3.19346284]
[1752980959948,0.1376,3620.3,3620.1,3.62496284]
[1752980961741,0.11550177,3620.3,3620.1,3.62496284]
[1752980962726,0.11550177,3620.3,3620.1,3.19346284]
[1752980962916,0.11550177,3620.3,3620.2,0.4315]
[1752980963338,0.11550177,3620.3,3620.2,0.72134115]
[1752980963544,4.70943761,3622.1,3620.4,2.76209939]
[1752980963545,2.76161476,3621.1,3620.4,2.76209939]
[1752980963825,0.1376,3620.7,3620.5,3.62496284]
[1752980964026,4.21,3620.6,3620.5,3.19346284]
[1752980964655,4.21,3620.6,3620.5,3.62496284]
[1752980965169,5.01,3620.6,3620.5,3.62496284]
[1752980967547,7.77197883,3620.6,3620.2,5.14880399]
[1752980967848,7.77197883,3620.6,3620.2,4.42746284]
[1752980967849,4.209,3620.5,3620.2,4.42746284]
[1752980968016,0.802,3620.6,3620.3,0.4315]
[1752980968217,5.011,3620.6,3620.3,0.4315]
[1752980968955,5.011,3620.6,3620.4,0.4315]
[1752980969354,5.011,3620.6,3620.2,7.49108249]
[1752980969518,5.011,3620.6,3620.3,0.4315]
[1752980969718,5.011,3620.6,3620.2,7.49108249]
[1752980969920,5.011,3620.6,3620.4,0.4315]
[1752980970218,0.802,3620.6,3620.3,3.19363074]
[1752980970413,0.802,3620.6,3620.5,3.57004944]
[1752980970666,0.802,3620.6,3620.5,4.00154944]
[1752980971030,0.002,3620.6,3620.5,4.00154944]
[1752980974259,0.002,3620.6,3620.5,7.00154944]
[1752980974452,0.002,3620.6,3620.5,8.81252557]
[1752980978422,0.002,3621.4,3620.9,0.8257]
[1752980978621,0.4488,3621.4,3621.0,3.0]
[1752980979060,0.4488,3621.4,3621.0,5.76165124]
[1752980979426,0.4488,3621.4,3621.0,3.0]
[1752980980163,0.4488,3621.4,3621.1,2.76158412]
[1752980980973,0.002,3621.4,3621.1,2.76153334]
[1752980981144,0.002,3621.4,3621.0,5.76164453]
[1752980981468,2.7633633,3621.4,3621.0,3.0]
[1752980981637,1.23564633,3621.3,3621.0,3.0]
[1752980981839,4.13470697,3621.3,3620.7,0.1376]
[1752980982034,0.1376,3621.1,3620.6,3.19346284]
[1752980982233,5.4343,3621.0,3620.6,3.19346284]
[1752980982430,0.4468,3620.9,3620.6,3.19346284]
[1752980982630,0.4468,3620.9,3620.7,3.0]
[1752980984972,0.4468,3620.8,3620.5,0.1376]
[1752980985156,0.1376,3620.7,3620.3,3.0]
[1752980985355,0.1376,3620.5,3620.3,3.0]
[1752980985563,3.34650451,3620.5,3620.3,3.0]
[1752980985770,2.89970451,3620.5,3620.3,3.0]
[1752980985973,3.20892573,3620.4,3619.9,3.33206284]
[1752980986172,0.9666,3620.5,3619.9,3.33206284]
[1752980986173,3.20903174,3620.3,3619.9,3.33206284]
[1752980986339,3.72865229,3620.5,3619.9,3.33206284]
[1752980986340,6.97029963,3620.2,3619.9,3.33206284]
[1752980986540,7.41709963,3620.2,3620.0,3.0]
[1752980986944,4.6548,3620.2,3620.0,3.0]
[1752980987743,4.208,3620.2,3619.9,0.001]
[1752980988075,4.6548,3620.2,3620.0,3.19346284]
[1752980988236,4.6548,3620.2,3619.9,0.001]
[1752980988237,2.76243093,3620.0,3619.9,0.001]
[1752980988435,3.2091757,3620.1,3619.9,0.001]
[1752980989586,2.76243093,3620.0,3619.9,0.001]
[1752980989772,3.99503093,3620.0,3619.9,0.001]
[1752980990079,3.54823093,3620.0,3619.9,0.001]
[1752980990244,4.00473093,3620.0,3619.9,0.001]
[1752980990579,5.65224159,3620.0,3619.9,0.001]
[1752980994952,10.66124159,3620.0,3619.9,0.001]
[1752980995777,10.66124159,3620.0,3619.9,1e-08]
[1752980997954,3.31273621,3619.6,3619.5,0.001]
[1752980998189,4.10498887,3619.4,3619.0,0.001]
[1752980998355,8.31398887,3619.4,3619.0,0.001]
[1752980998555,8.77048887,3619.4,3619.0,0.001]
[1752980999093,8.91447062,3619.4,3619.0,0.001]
[1752981000552,9.71447062,3619.4,3619.0,0.001]
[1752981000792,11.02294374,3619.4,3619.0,0.001]
[1752981005706,11.02394374,3619.4,3619.0,0.001]
[1752981006000,5.80744374,3619.4,3619.0,0.001]
[1752981006203,9.22534374,3619.4,3619.0,0.001]
[1752981006506,8.46687062,3619.4,3619.0,0.4346]
[1752981006874,4.25687062,3619.4,3619.0,0.4346]
[1752981007071,8.46687062,3619.4,3619.0,0.4346]
[1752981007270,8.46687062,3619.4,3619.0,0.001]
[1752981007495,8.92337062,3619.4,3619.0,0.001]
[1752981008709,4.25687062,3619.4,3619.0,0.001]
[1752981008907,8.32288887,3619.4,3619.1,0.4746]
[1752981009906,8.32288887,3619.4,3619.3,0.4346]
[1752981009907,5.01,3619.4,3619.3,0.4346]
[1752981010486,3.56288887,3619.4,3619.3,0.4346]
[1752981011004,7.77288887,3619.4,3619.3,0.001]
[1752981012074,8.8264604,3619.4,3619.3,0.001]
[1752981013087,4.6164604,3619.4,3619.3,0.001]
[1752981013403,3.56288887,3619.4,3619.3,0.001]
[1752981013710,7.77288887,3619.4,3619.3,0.001]
[1752981020429,7.77288887,3619.4,3619.3,0.4474]
[1752981020994,7.77288887,3619.4,3619.3,0.001]
[1752981023129,7.77288887,3619.4,3619.3,0.4474]
[1752981023297,3.56288887,3619.4,3619.3,0.4474]
[1752981023498,7.77188887,3619.4,3619.3,0.4474]
[1752981024019,7.77188887,3619.4,3619.3,0.001]
[1752981024538,8.02535174,3619.4,3619.3,0.001]
[1752981025609,3.81635174,3619.4,3619.3,0.001]
[1752981025816,8.02535174,3619.4,3619.3,0.001]
[1752981026019,6.97188887,3619.4,3619.3,0.001]
[1752981026208,7.77188887,3619.4,3619.3,0.001]
[1752981026409,3.56288887,3619.4,3619.3,0.001]
[1752981026616,2.90059999,3619.3,3619.1,0.4384]
[1752981026828,4.209,3619.2,3619.1,0.4384]
[1752981026994,2.76299999,3619.3,3619.1,0.4384]
[1752981027196,4.209,3619.2,3619.1,0.4384]
[1752981029649,6.97204155,3619.2,3619.1,0.3884]
[1752981029823,2.9007179,3619.1,3619.0,0.001]
[1752981030142,3.3527179,3619.1,3619.0,0.001]
[1752981033247,3.9027179,3619.1,3619.0,0.001]
[1752981033742,4.7203179,3619.1,3619.0,0.001]
[1752981033948,6.46755377,3619.1,3619.0,0.001]
[1752981038921,6.46755377,3619.1,3619.0,1e-08]
[1752981039172,6.72616392,3619.1,3619.0,1e-08]
[1752981040539,10.93516392,3619.1,3619.0,1e-08]
[1752981041144,10.67655377,3619.1,3619.0,1e-08]
[1752981042070,10.93494407,3619.1,3619.0,1e-08]
[1752981043127,6.46755377,3619.1,3619.0,1e-08]
[1752981043466,10.67655377,3619.1,3619.0,1e-08]
[1752981044423,10.93477395,3619.1,3619.0,1e-08]
[1752981045567,10.67655377,3619.1,3619.0,1e-08]
[1752981045930,10.93473703,3619.1,3619.0,1e-08]
[1752981046129,10.67655377,3619.1,3619.0,1e-08]
[1752981048973,6.46755377,3619.1,3619.0,1e-08]
[1752981049144,3.04469582,3619.1,3619.0,1e-08]
[1752981049343,3.49669582,3619.1,3619.0,1e-08]
[1752981049667,9.04209582,3619.1,3619.0,1e-08]
[1752981051532,4.38109582,3619.1,3619.0,1e-08]
[1752981051737,3.59469582,3619.1,3619.0,1e-08]
[1752981051963,9.18256823,3619.1,3619.0,1e-08]
[1752981052354,9.62516823,3619.1,3619.0,1e-08]
[1752981052691,5.41616823,3619.1,3619.0,1e-08]
[1752981052892,9.18256823,3619.1,3619.0,1e-08]
[1752981053090,4.97356823,3619.1,3619.0,1e-08]
[1752981053289,9.18256823,3619.1,3619.0,1e-08]
[1752981053893,3.04469582,3619.1,3619.0,1e-08]
[1752981054098,7.1097179,3619.1,3619.0,0.43410001]
[1752981054796,7.1097179,3619.1,3619.0,1e-08]
[1752981054968,7.6597179,3619.1,3619.0,1e-08]
[1752981058396,0.6876,3619.1,3619.0,1e-08]
[1752981058582,4.8956,3619.1,3619.0,0.43410001]
[1752981059696,7.6587179,3619.1,3619.0,0.43410001]
[1752981060466,7.6587179,3619.1,3619.0,1e-08]
[1752981061083,10.84131993,3619.1,3619.0,1e-08]
[1752981067210,11.09993953,3619.1,3619.0,1e-08]
[1752981067998,3.31341173,3618.8,3618.5,0.001]
[1752981068219,3.31349969,3618.6,3618.5,0.001]
[1752981068386,4.70093789,3618.6,3618.5,0.001]
[1752981068798,5.14353789,3618.6,3618.5,0.001]
[1752981077660,6.31357606,3618.5,3618.4,1e-08]
[1752981077858,12.04879573,3618.5,3618.4,1e-08]
[1752981078031,13.50251027,3618.5,3618.4,1e-08]
[1752981078230,13.94511027,3618.5,3618.4,1e-08]
[1752981079634,13.94511027,3618.5,3618.1,0.04]
[1752981079635,4.0956052,3618.2,3618.1,1e-08]
[1752981079834,8.4412052,3618.2,3618.1,1e-08]
[1752981080043,10.33025382,3618.2,3618.1,1e-08]
[1752981080248,10.51834766,3618.2,3618.1,1e-08]
[1752981080967,13.51834766,3618.2,3618.1,1e-08]
[1752981081154,13.77657205,3618.2,3618.1,1e-08]
[1752981081346,3.31403438,3617.9,3617.8,1e-08]
[1752981081544,8.84810644,3617.9,3617.8,1e-08]
[1752981081748,9.29450644,3617.9,3617.8,1e-08]
[1752981084277,3.31456928,3617.2,3617.1,0.04]
[1752981084454,7.52256928,3617.2,3617.1,0.04]
[1752981085042,8.55127429,3617.2,3617.1,0.04]
[1752981085676,8.99767429,3617.2,3617.1,0.04]
[1752981086378,8.55127429,3617.2,3617.1,0.04]
[1752981089374,7.52256928,3617.2,3617.1,1.2805]
[1752981090041,4.208,3617.2,3617.1,1.2805]
[1752981090247,9.67467658,3618.2,3617.2,0.7788]
[1752981090470,2.7640368,3617.9,3617.4,0.7788]
[1752981090669,4.208,3617.8,3617.4,0.7788]
[1752981090975,0.14393412,3618.2,3617.7,3.19346284]
[1752981091181,6.97193122,3618.1,3617.7,3.19346284]
[1752981091385,4.208,3618.1,3617.8,0.4617]
[1752981091677,4.208,3618.1,3617.6,0.7788]
[1752981091678,2.76403438,3617.9,3617.6,0.7788]
[1752981091986,3.3142636,3617.6,3617.5,0.4617]
[1752981092146,2.76441643,3617.4,3617.3,0.7788]
[1752981092340,7.52241643,3617.4,3617.2,0.4617]
[1752981092542,7.52241643,3617.4,3617.1,0.04]
[1752981092543,2.76456928,3617.2,3617.1,0.04]
[1752981092752,6.97256928,3617.2,3617.1,0.5017]
[1752981093898,7.52256928,3617.2,3617.1,0.04]
[1752981095303,8.55127069,3617.2,3617.1,0.04]
[1752981095966,8.55127069,3617.2,3617.1,0.041]
[1752981097003,8.99767069,3617.2,3617.1,0.041]
[1752981097196,9.37567069,3617.2,3617.1,0.041]
[1752981097400,9.82207069,3617.2,3617.1,0.041]
[1752981097601,8.55127069,3617.2,3617.1,0.041]
[1752981099695,8.99767069,3617.2,3617.1,0.041]
[1752981101608,9.1416586,3617.2,3617.1,0.041]
[1752981103418,9.9652586,3617.2,3617.1,0.041]
[1752981103818,9.9652586,3617.2,3617.1,1e-08]
[1752981104484,12.9652586,3617.2,3617.1,1e-08]
[1752981104685,3.31464571,3617.1,3617.0,1e-08]
[1752981104881,5.33401605,3617.1,3617.0,1e-08]
[1752981109225,5.59249179,3617.1,3617.0,1e-08]
[1752981110290,5.33401605,3617.1,3617.0,1e-08]
[1752981116799,4.88761605,3617.1,3617.0,1e-08]
[1752981117220,5.32861605,3617.1,3617.0,1e-08]
[1752981120113,3.31518084,3616.4,3616.3,1e-08]
[1752981120338,7.52318084,3616.4,3616.3,1e-08]
[1752981121553,7.96418084,3616.4,3616.3,1e-08]
[1752981122052,8.10811812,3616.4,3616.3,1e-08]
[1752981122648,8.89321812,3616.4,3616.3,1e-08]
[1752981122818,10.72264901,3616.4,3616.3,1e-08]
[1752981123872,4.73854901,3616.4,3616.3,1e-08]
[1752981124043,7.11711812,3616.4,3616.3,1e-08]
[1752981124737,7.66711812,3616.4,3616.3,1e-08]
[1752981125574,3.45911812,3616.4,3616.3,0.45310001]
[1752981125878,7.66711812,3616.4,3616.3,1e-08]
[1752981126638,7.66711812,3616.4,3616.3,0.45310001]
[1752981127261,3.45911812,3616.4,3616.3,0.45310001]
[1752981127466,7.66711812,3616.4,3616.3,0.45310001]
[1752981128881,4.208,3616.4,3616.3,1.20960001]
[1752981129053,9.40097755,3616.7,3616.4,0.7565]
[1752981129260,4.208,3616.6,3616.4,0.7565]
[1752981129458,4.208,3616.6,3616.5,1.2096]
[1752981129774,0.002,3617.2,3616.5,0.4531]
[1752981129957,0.002,3617.2,3616.7,0.7565]
[1752981130152,0.002,3617.2,3616.7,0.44030628]
[1752981130153,0.1376,3616.8,3616.7,0.44030628]
[1752981130357,4.3456,3616.8,3616.7,1.19680628]
[1752981130758,4.208,3616.8,3616.7,1.64990628]
[1752981130980,4.208,3616.8,3616.7,4.41485775]
[1752981131371,4.208,3616.8,3616.7,1.64990628]
[1752981132459,4.208,3616.8,3616.7,4.41485775]
[1752981133244,0.002,3617.2,3616.9,5.76479858]
[1752981133453,4.21,3617.2,3617.1,0.7565]
[1752981133688,4.21,3617.2,3617.1,1.2096]
[1752981134593,4.21,3617.2,3617.1,3.97424571]
[1752981135677,4.21,3617.2,3617.1,6.97424571]
[1752981135976,0.002,3617.2,3617.1,6.97424571]
[1752981136177,0.002,3617.2,3617.1,8.36856191]
[1752981136392,0.002,3617.2,3617.1,8.50616191]
[1752981138593,0.002,3617.2,3617.1,1.2096]
[1752981139095,2.76656928,3617.2,3617.1,0.7565]
[1752981139293,0.002,3617.2,3617.1,0.7565]
[1752981139614,2.76656928,3617.2,3617.1,1.2096]
[1752981139798,2.76656928,3617.2,3617.1,0.7565]
[1752981140563,2.76656928,3617.2,3617.1,1.1935]
[1752981140896,6.97656928,3617.2,3617.1,1.1935]
[1752981141486,4.212,3617.2,3617.1,1.1935]
[1752981141885,6.97656928,3617.2,3617.1,1.1935]
[1752981142204,2.76477505,3617.0,3616.7,1.2475]
[1752981142402,4.211,3616.9,3616.7,1.2475]
[1752981142603,2.90247502,3616.8,3616.7,0.8105]
[1752981143199,0.1376,3616.8,3616.7,0.8105]
[1752981143396,0.1376,3616.8,3616.7,1.2475]
[1752981144702,2.90247502,3616.8,3616.7,1.2475]
[1752981145105,2.90247502,3616.8,3616.7,0.8105]
[1752981145404,2.76499816,3616.7,3616.4,0.7949]
[1752981145579,4.212,3616.6,3616.4,0.7949]
[1752981145782,4.212,3616.6,3616.5,0.437]
[1752981146387,4.212,3616.6,3616.3,1e-08]
[1752981146591,2.76518084,3616.4,3616.3,1e-08]
[1752981148117,2.7651345,3616.5,3616.3,1e-08]
[1752981148681,6.97705839,3616.6,3616.3,1e-08]
[1752981148920,6.97704821,3616.6,3616.3,1e-08]
[1752981149079,2.76512151,3616.5,3616.3,1e-08]
[1752981149284,4.21,3616.4,3616.3,1e-08]
[1752981149898,4.21,3616.4,3616.3,0.43700001]
[1752981150598,4.21,3616.4,3616.3,1e-08]
[1752981150599,4.76,3616.4,3616.3,1e-08]
[1752981151722,7.52518084,3616.4,3616.3,1e-08]
[1752981154788,4.76,3616.4,3616.3,1e-08]
[1752981155220,7.52518084,3616.4,3616.3,1e-08]
[1752981157289,4.76,3616.4,3616.3,1e-08]
[1752981157488,7.52518084,3616.4,3616.3,1e-08]
[1752981159504,4.76,3616.4,3616.3,1e-08]
[1752981159908,7.52518084,3616.4,3616.3,1e-08]
[1752981160127,4.758,3616.4,3616.3,1e-08]
[1752981160826,0.7533,3617.0,3616.3,1e-08]
[1752981161002,4.208,3616.9,3616.4,0.781]
[1752981161330,0.14395448,3616.9,3616.5,0.437]
[1752981161526,2.76657521,3617.2,3616.7,2.76488989]
[1752981161527,4.208,3616.8,3616.7,2.76488989]
[1752981161825,4.208,3616.8,3616.7,3.20188989]
[1752981162531,0.8,3616.9,3616.8,2.76487502]
[1752981162739,0.002,3617.2,3617.0,2.76465068]
[1752981162950,0.002,3617.2,3617.1,2.76464571]
[1752981163096,4.21,3617.2,3617.1,2.76464571]
[1752981163428,4.21,3617.2,3617.1,3.20164571]
[1752981163629,0.002,3617.2,3617.1,10.10187145]
[1752981163941,0.002,3617.2,3617.1,10.91137145]
[1752981167628,0.002,3617.2,3617.1,11.04897145]
[1752981168228,0.002,3617.2,3617.1,15.25597145]
[1752981169955,0.002,3617.2,3617.1,12.06150861]
[1752981172974,0.002,3617.2,3617.1,6.71174571]
[1752981174087,0.002,3617.2,3617.1,7.15094571]
[1752981174583,0.002,3617.2,3617.1,6.71174571]
[1752981175441,0.002,3617.2,3617.1,0.1376]
[1752981175672,0.002,3617.2,3617.1,2.90224571]
[1752981177266,0.002,3617.2,3617.0,2.76469643]
[1752981177846,0.002,3617.2,3616.9,7.15107067]
[1752981178159,0.002,3617.2,3617.0,2.76470907]
[1752981178484,0.002,3617.2,3617.0,3.20390083]
[1752981179891,0.002,3617.2,3616.9,6.71188174]
[1752981180202,0.43,3617.1,3616.6,0.8193]
[1752981180351,0.1376,3617.1,3616.6,0.8193]
[1752981180554,0.43,3617.0,3616.6,3.8193]
[1752981181275,0.1376,3617.1,3616.6,3.8193]
[1752981181467,0.1376,3617.1,3616.6,2.76502615]
[1752981181667,0.5676,3617.1,3616.6,2.76502615]
[1752981181875,0.5676,3617.1,3616.5,0.1376]
[1752981182062,0.1376,3617.1,3616.6,1.64680963]
[1752981182277,0.1376,3617.1,3616.7,0.4392]
[1752981182485,0.1376,3617.1,3616.6,1.20760963]
[1752981182795,0.1376,3617.1,3616.8,3.0]
[1752981182994,0.002,3617.2,3617.0,3.0]
[1752981183171,0.002,3617.2,3617.0,3.66326628]
[1752981183361,0.002,3617.2,3617.0,5.76471597]
[1752981183595,0.002,3617.2,3616.9,0.1376]
[1752981183825,0.5696,3617.2,3616.8,3.0]
[1752981184000,0.8036,3617.1,3616.8,3.0]
[1752981184328,2.90254282,3616.8,3616.3,1e-08]
[1752981184626,7.77456127,3616.7,3616.3,1e-08]
[1752981184834,0.1376,3616.6,3616.3,1e-08]
[1752981185195,0.43,3616.5,3616.3,1e-08]
[1752981186126,0.1376,3616.4,3616.3,1e-08]
[1752981186528,0.1376,3616.4,3616.3,3.00000001]
[1752981186700,0.1376,3616.4,3616.3,1e-08]
[1752981190505,0.5676,3616.4,3616.3,1e-08]
[1752981190715,3.33278084,3616.4,3616.3,1e-08]
[1752981191605,4.45792558,3616.4,3616.3,1e-08]
[1752981192010,0.5676,3616.4,3616.3,1e-08]
[1752981194241,0.1376,3616.4,3616.3,1e-08]
[1752981194607,0.9412,3616.4,3616.3,1e-08]
[1752981194807,4.13638084,3616.4,3616.3,1e-08]
[1752981195045,1.3712,3616.4,3616.3,1e-08]
[1752981195337,4.13638084,3616.4,3616.3,1e-08]
[1752981195544,1.3712,3616.4,3616.3,1e-08]
[1752981195937,4.13638084,3616.4,3616.3,1e-08]
[1752981196340,1.3712,3616.4,3616.3,1e-08]
[1752981196931,0.1376,3616.4,3616.3,1e-08]
[1752981197131,0.1376,3616.4,3616.3,2.76525731]
[1752981197508,0.1376,3616.4,3616.3,3.64166863]
[1752981197714,0.002,3617.2,3616.7,2.76489737]
[1752981197715,4.207,3617.0,3616.7,2.76489737]
[1752981197929,0.1376,3616.9,3616.7,2.76489737]
[1752981198106,0.1376,3616.9,3616.7,3.0]
[1752981198311,0.002,3617.2,3617.0,2.76470245]
[1752981198526,0.002,3617.2,3617.1,2.76464571]
[1752981198728,0.002,3617.2,3617.0,7.2231604]
[1752981198934,0.002,3617.2,3617.1,2.76464571]
[1752981199164,0.002,3617.2,3617.0,5.95816841]
[1752981199556,0.002,3617.2,3617.1,2.76464571]
[1752981199767,0.002,3617.2,3617.0,5.95816779]
[1752981201062,0.002,3617.2,3617.1,2.76464571]
[1752981202088,0.7574,3617.0,3616.2,0.1376]
[1752981202254,4.207,3616.9,3616.2,0.1376]
[1752981202581,0.1376,3616.7,3616.2,0.1376]
[1752981202959,0.1376,3616.7,3616.4,3.0]
[1752981203281,0.6081,3616.7,3616.4,3.0]
[1752981203477,0.6081,3616.7,3616.3,2.76522982]
[1752981203634,0.6081,3616.7,3616.3,1e-08]
[1752981204442,2.90255422,3616.7,3616.3,1e-08]
[1752981204644,0.4705,3616.6,3616.3,1e-08]
[1752981205561,0.1376,3616.4,3616.3,1e-08]
[1752981205736,0.9019,3616.4,3616.3,1e-08]
[1752981205935,1.3724,3616.4,3616.3,1e-08]
[1752981206782,0.9019,3616.4,3616.3,1e-08]
[1752981206965,0.1376,3616.4,3616.3,1e-08]
[1752981207362,0.1376,3616.4,3616.3,3.00000001]
[1752981208580,0.1376,3616.4,3616.3,1e-08]
[1752981209559,0.6081,3616.4,3616.3,1e-08]
[1752981211993,0.1376,3616.4,3616.3,1e-08]
[1752981214195,0.1376,3616.4,3616.3,6.78053369]
[1752981214400,0.1376,3616.4,3616.3,7.60153369]
[1752981214585,0.1376,3616.4,3616.3,7.14333369]
[1752981215004,0.1376,3616.4,3616.3,7.60153369]
[1752981215215,4.207,3616.7,3616.3,4.37807639]
[1752981215403,4.3446,3616.7,3616.3,3.82100001]
[1752981215707,4.3446,3616.7,3616.5,2.76510204]
[1752981218490,4.3446,3616.7,3616.4,2.76515843]
[1752981218817,4.3446,3616.7,3616.5,2.76503447]
[1752981219002,4.3446,3616.7,3616.5,2.76505375]
[1752981219205,4.3446,3616.7,3616.3,5.765239]
[1752981220497,4.3446,3616.7,3616.3,3.00000001]
[1752981221129,0.7655,3616.6,3616.3,3.00000001]
[1752981221409,0.4705,3616.5,3616.3,3.00000001]
[1752981221612,0.7655,3616.6,3616.3,5.76525731]
[1752981221781,0.4705,3616.5,3616.3,3.00000001]
[1752981221982,0.7655,3616.6,3616.4,2.76518084]
[1752981222184,0.7655,3616.6,3616.3,5.76524481]
[1752981222379,0.7655,3616.6,3616.3,3.00000001]
[1752981222612,0.4705,3616.5,3616.3,1e-08]
[1752981222980,3.53055286,3616.6,3616.3,1e-08]
[1752981223188,0.4705,3616.5,3616.3,1e-08]
[1752981223387,4.207,3616.4,3616.3,1e-08]
[1752981223616,4.6775,3616.4,3616.3,1e-08]
[1752981223815,4.207,3616.4,3616.3,1e-08]
[1752981225112,0.4705,3616.7,3616.3,1e-08]
[1752981225311,0.1376,3616.5,3616.3,1e-08]
[1752981225518,0.1376,3616.5,3616.4,0.4582]
[1752981225825,4.207,3616.6,3616.4,0.4582]
[1752981225826,4.207,3616.6,3616.4,3.2233067]
[1752981226034,4.3446,3616.7,3616.6,2.76502792]
[1752981226414,0.1376,3616.7,3616.6,2.76502792]
[1752981226729,0.1376,3616.7,3616.6,3.22322792]
[1752981226932,0.1376,3616.7,3616.5,2.76507783]
[1752981227296,0.1376,3616.7,3616.6,2.76502792]
[1752981227830,0.1376,3616.7,3616.6,3.22322792]
[1752981228396,4.209,3616.9,3616.6,3.22322792]
[1752981228397,0.002,3616.9,3616.6,7.2479891]
[1752981228607,0.002,3616.9,3616.8,5.96552119]
[1752981229331,0.002,3616.9,3616.8,3.65884617]
[1752981229533,0.002,3616.9,3616.8,2.76487502]
[1752981231337,0.002,3616.9,3616.6,6.89966891]